fUSD/lending_fUSD_20240423
["ID","MTS","AMOUNT","RATE_DAILY","PERIOD"]
[323300531,1713881454638,-500.0,0.00012562,2]
[323300532,1713881454650,-943.17,0.00012562,2]
[323300533,1713881454659,-500.0,0.00012562,2]
[323300534,1713881454668,-500.0,0.00012562,2]
[323300535,1713881454678,-510.52,0.00012562,2]
[323300536,1713881454687,-850.64,0.00012562,2]
[323300537,1713881454697,-920.78,0.00012562,2]
[323300538,1713881454706,-964.6,0.00012562,2]
[323300539,1713881454715,-500.0,0.00012562,2]
[323300540,1713881454726,-997.19,0.00012562,2]
[323300541,1713881454735,-500.0,0.00012562,2]
[323300542,1713881454744,-3248.43,0.00012562,2]
[323300543,1713881454754,-500.0,0.00012562,2]
[323300544,1713881454765,-500.0,0.00012562,2]
[323300545,1713881454775,-500.0,0.00012562,2]
[323300546,1713881454786,-500.0,0.00012562,2]
[323300547,1713881454796,-1034.34,0.00012562,2]
[323300548,1713881454805,-500.0,0.00012562,2]
[323300549,1713881454815,-927.86,0.00012562,2]
[323300550,1713881454824,-596.99,0.00012562,2]
[323300551,1713881454838,-1714.59,0.00012562,2]
[323300552,1713881454847,-500.0,0.00012562,2]
[323300553,1713881454857,-500.0,0.00012562,2]
[323300554,1713881454867,-818.02,0.00012562,2]
[323300555,1713881454877,-500.0,0.00012562,2]
[323300556,1713881454886,-2482.34,0.00012562,2]
[323300557,1713881454895,-739.14,0.00012562,2]
[323300558,1713881454905,-500.0,0.00012562,2]
[323300559,1713881454914,-500.0,0.00012562,2]
[323300560,1713881454924,-758.84,0.00012562,2]
[323300561,1713881454933,-600.11,0.00012562,2]
[323300562,1713881454943,-500.0,0.00012562,2]
[323300563,1713881454952,-500.0,0.00012562,2]
[323300564,1713881454961,-500.0,0.00012562,2]
[323300565,1713881454971,-2819.73,0.00012562,2]
[323300566,1713881454980,-500.0,0.00012562,2]
[323300567,1713881454989,-500.0,0.00012562,2]
[323300568,1713881454999,-513.53,0.00012562,2]
[323300569,1713881455011,-500.0,0.00012562,2]
[323300570,1713881455020,-500.0,0.00012562,2]
[323300571,1713881455029,-500.0,0.00012562,2]
[323300572,1713881455038,-8226.17,0.00012562,2]
[323300573,1713881455048,-500.0,0.00012562,2]
[323300574,1713881455057,-623.66,0.00012562,2]
[323300575,1713881455066,-500.0,0.00012562,2]
[323300576,1713881455075,-500.0,0.00012562,2]
[323300577,1713881455084,-500.0,0.00012562,2]
[323300578,1713881455093,-3484.06,0.00012562,2]
[323300579,1713881455103,-4578.03,0.00012562,2]
[323300580,1713881455112,-594.2,0.00012562,2]
[323300581,1713881455121,-1107.93,0.00012562,2]
[323300582,1713881455130,-500.0,0.00012562,2]
[323300583,1713881455140,-1222.39,0.00012562,2]
[323300584,1713881455149,-1631.22,0.00012562,2]
[323300585,1713881455158,-1351.92,0.00012562,2]
[323300586,1713881455168,-690.72,0.00012562,2]
[323300587,1713881455177,-2048.47,0.00012562,2]
[323300588,1713881455187,-543.96,0.00012562,2]
[323300589,1713881455196,-1991.2,0.00012562,2]
[323300590,1713881455205,-500.0,0.00012562,2]
[323300591,1713881455215,-566.56,0.00012562,2]
[323300592,1713881455224,-1556.31,0.00012562,2]
[323300593,1713881455233,-787.33,0.00012562,2]
[323300594,1713881455243,-525.36,0.00012562,2]
[323300595,1713881455252,-2005.8,0.00012562,2]
[323300596,1713881455263,-4410.99,0.00012562,2]
[323300597,1713881455272,-861.88,0.00012562,2]
[323300598,1713881455282,-608.66,0.00012562,2]
[323300599,1713881455291,-1825.57,0.00012562,2]
[323300600,1713881455301,-1010.39,0.00012562,2]
[323300601,1713881455311,-500.0,0.00012562,2]
[323300602,1713881455320,-887.5,0.00012562,2]
[323300603,1713881455329,-2165.36,0.00012562,2]
[323300604,1713881455339,-577.41,0.00012562,2]
[323300605,1713881455348,-500.0,0.00012562,2]
[323300606,1713881455357,-500.0,0.00012562,2]
[323300607,1713881455366,-500.0,0.00012562,2]
[323300608,1713881455375,-500.0,0.00012562,2]
[323300609,1713881455385,-500.0,0.00012562,2]
[323300610,1713881455395,-500.0,0.00012562,2]
[323300611,1713881455404,-637.33,0.00012562,2]
[323300612,1713881455413,-1071.26,0.00012562,2]
[323300613,1713881455422,-500.0,0.00012562,2]
[323300614,1713881455432,-6002.69,0.00012562,2]
[323300615,1713881455441,-596.78,0.00012563,2]
[323300616,1713881455450,-500.0,0.00012563,2]
[323300617,1713881455460,-500.0,0.00012563,2]
[323300618,1713881455469,-500.0,0.00012563,2]
[323300619,1713881455478,-500.0,0.00012563,2]
[323300620,1713881455488,-500.0,0.00012563,2]
[323300621,1713881455497,-500.0,0.00012563,2]
[323300622,1713881455508,-772.48,0.00012563,2]
[323300623,1713881455517,-500.0,0.00012563,2]
[323300624,1713881455526,-500.0,0.00012563,2]
[323300625,1713881455534,-500.0,0.00012563,2]
[323300626,1713881455543,-500.0,0.00012563,2]
[323300627,1713881455552,-500.0,0.00012563,2]
[323300628,1713881455562,-500.0,0.00012563,2]
[323300629,1713881455571,-500.0,0.00012563,2]
[323300630,1713881455580,-500.0,0.00012563,2]
[323300631,1713881455589,-510.43877835,0.00012563,2]
[323300632,1713881455598,-501.37,0.00012563,2]
[323300633,1713881455607,-500.0,0.00012563,2]
[323300634,1713881455616,-500.0,0.00012563,2]
[323300635,1713881455625,-500.0,0.00012563,2]
[323300636,1713881455634,-500.0,0.00012563,2]
[323300637,1713881455644,-824.72,0.00012563,2]
[323300638,1713881455655,-500.0,0.00012563,2]
[323300639,1713881455665,-500.0,0.00012563,2]
[323300640,1713881455676,-500.0,0.00012563,2]
[323300641,1713881455686,-500.0,0.00012563,2]
[323300642,1713881455694,-500.0,0.00012563,2]
[323300643,1713881455703,-500.0,0.00012563,2]
[323300644,1713881455713,-500.0,0.00012563,2]
[323300645,1713881455723,-1172.37,0.00012563,2]
[323300646,1713881455732,-500.0,0.00012563,2]
[323300647,1713881455742,-535.55,0.00012563,2]
[323300648,1713881455755,-507.69,0.00012563,2]
[323300649,1713881455770,-500.0,0.00012563,2]
[323300650,1713881455781,-500.0,0.00012563,2]
[323300651,1713881455794,-500.0,0.00012563,2]
[323300652,1713881455805,-500.0,0.00012563,2]
[323300653,1713881455816,-500.0,0.00012563,2]
[323300654,1713881455828,-781.53,0.00012563,2]
[323300655,1713881455840,-500.0,0.00012563,2]
[323300656,1713881455852,-780.47,0.00012563,2]
[323300657,1713881455864,-500.0,0.00012563,2]
[323300658,1713881455875,-500.0,0.00012563,2]
[323300659,1713881455887,-599.15,0.00012563,2]
[323300660,1713881455898,-500.0,0.00012563,2]
[323300661,1713881455910,-500.0,0.00012563,2]
[323300662,1713881455922,-500.0,0.00012563,2]
[323300663,1713881455932,-578.87,0.00012563,2]
[323300664,1713881455942,-744.94,0.00012563,2]
[323300665,1713881455955,-500.0,0.00012563,2]
[323300666,1713881455966,-500.0,0.00012563,2]
[323300667,1713881455977,-723.83,0.00012563,2]
[323300668,1713881455988,-500.0,0.00012563,2]
[323300669,1713881455999,-500.0,0.00012563,2]
[323300670,1713881456013,-500.0,0.00012563,2]
[323300671,1713881456026,-711.07,0.00012563,2]
[323300672,1713881456038,-500.0,0.00012563,2]
[323300673,1713881456047,-500.0,0.00012563,2]
[323300674,1713881456057,-500.0,0.00012563,2]
[323300675,1713881456070,-500.0,0.00012563,2]
[323300676,1713881456082,-500.0,0.00012563,2]
[323300677,1713881456092,-500.0,0.00012563,2]
[323300678,1713881456104,-559.2,0.00012563,2]
[323300679,1713881456116,-500.0,0.00012563,2]
[323300680,1713881456127,-500.0,0.00012563,2]
[323300681,1713881456138,-500.0,0.00012563,2]
[323300682,1713881456149,-500.0,0.00012563,2]
[323300683,1713881456159,-500.0,0.00012563,2]
[323300684,1713881456171,-500.0,0.00012563,2]
[323300685,1713881456183,-500.0,0.00012563,2]
[323300686,1713881456194,-500.0,0.00012563,2]
[323300687,1713881456205,-500.0,0.00012563,2]
[323300688,1713881456218,-500.0,0.00012563,2]
[323300689,1713881456230,-500.0,0.00012563,2]
[323300690,1713881456243,-500.0,0.00012563,2]
[323300691,1713881456255,-500.0,0.00012563,2]
[323300692,1713881456271,-500.0,0.00012563,2]
[323300693,1713881456282,-500.0,0.00012563,2]
[323300694,1713881456292,-500.0,0.00012563,2]
[323300695,1713881456302,-500.0,0.00012563,2]
[323300696,1713881456311,-500.0,0.00012563,2]
[323300697,1713881456323,-500.0,0.00012563,2]
[323300698,1713881456335,-578.36,0.00012563,2]
[323300699,1713881456349,-500.0,0.00012563,2]
[323300700,1713881456360,-500.0,0.00012563,2]
[323300701,1713881456371,-500.0,0.00012563,2]
[323300702,1713881456384,-562.49,0.00012563,2]
[323300703,1713881456396,-500.0,0.00012563,2]
[323300704,1713881456406,-500.0,0.00012563,2]
[323300705,1713881456417,-500.0,0.00012563,2]
[323300706,1713881456426,-614.6,0.00012563,2]
[323300707,1713881456437,-776.76,0.00012563,2]
[323300708,1713881456448,-740.69,0.00012563,2]
[323300709,1713881456459,-500.0,0.00012563,2]
[323300710,1713881456469,-500.0,0.00012563,2]
[323300711,1713881456480,-500.0,0.00012563,2]
[323300712,1713881456492,-521.9,0.00012563,2]
[323300713,1713881456503,-500.0,0.00012563,2]
[323300714,1713881456516,-500.0,0.00012563,2]
[323300715,1713881456529,-637.38,0.00012563,2]
[323300716,1713881456540,-253.54109332,0.00012563,2]
[323300717,1713881456551,-500.0,0.00012563,2]
[323300718,1713881456562,-544.33,0.00012563,2]
[323300719,1713881456574,-500.0,0.00012563,2]
[323300720,1713881456585,-500.0,0.00012563,2]
[323300721,1713881456596,-500.0,0.00012563,2]
[323300722,1713881456607,-500.0,0.00012563,2]
[323300723,1713881456618,-345.72,0.00012563,2]
[323300724,1713881456629,-500.0,0.00012563,2]
[323300725,1713881456641,-500.0,0.00012563,2]
[323300726,1713881456652,-721.15,0.00012563,2]
[323300727,1713881456663,-398.69,0.00012563,2]
[323300728,1713881456674,-500.0,0.00012563,2]
[323300729,1713881456687,-500.0,0.00012563,2]
[323300730,1713881456698,-500.0,0.00012563,2]
[323300731,1713881456709,-500.0,0.00012563,2]
[323300732,1713881456720,-500.0,0.00012563,2]
[323300733,1713881456732,-596.19,0.00012563,2]
[323300734,1713881456743,-500.0,0.00012563,2]
[323300735,1713881456754,-500.0,0.00012563,2]
[323300736,1713881456768,-1193.26,0.00012563,2]
[323300737,1713881456779,-500.0,0.00012563,2]
[323300738,1713881456790,-576.19,0.00012563,2]
[323300739,1713881456801,-859.52,0.00012563,2]
[323300740,1713881456811,-500.0,0.00012563,2]
[323300741,1713881456823,-895.75,0.00012563,2]
[323300742,1713881456834,-2000.94,0.00012563,2]
[323300743,1713881456845,-500.0,0.00012563,2]
[323300744,1713881456856,-1599.82,0.00012563,2]
[323300745,1713881456867,-682.14,0.00012563,2]
[323300746,1713881456877,-500.0,0.00012563,2]
[323300747,1713881456888,-553.58,0.00012563,2]
[323300748,1713881456899,-700.38,0.00012563,2]
[323300749,1713881456910,-8995.29,0.00012563,2]
[323300750,1713881456921,-229.49,0.00012563,2]
[323300751,1713881456932,-551.24,0.00012563,2]
[323300752,1713881456943,-504.84,0.00012563,2]
[323300753,1713881456954,-500.0,0.00012563,2]
[323300754,1713881456966,-796.76,0.00012563,2]
[323300755,1713881456977,-500.0,0.00012563,2]
[323300756,1713881456987,-21121.8,0.00012563,2]
[323300757,1713881456998,-500.0,0.00012563,2]
[323300758,1713881457010,-500.0,0.00012563,2]
[323300759,1713881457020,-500.0,0.00012563,2]
[323300760,1713881457031,-1009.56,0.00012563,2]
[323300761,1713881457042,-500.0,0.00012563,2]
[323300762,1713881457053,-164.35,0.00012563,2]
[323300763,1713881457064,-765.59,0.00012563,2]
[323300764,1713881457075,-2492.2,0.00012563,2]
[323300765,1713881457086,-500.0,0.00012563,2]
[323300766,1713881457096,-500.0,0.00012563,2]
[323300767,1713881457107,-508.32,0.00012563,2]
[323300768,1713881457118,-1145.23,0.00012563,2]
[323300769,1713881457129,-500.0,0.00012563,2]
[323300770,1713881457140,-1230.19,0.00012563,2]
[323300771,1713881457151,-500.0,0.00012563,2]
[323300772,1713881457162,-757.79,0.00012563,2]
[323300773,1713881457173,-500.0,0.00012563,2]
[323300774,1713881457184,-500.0,0.00012563,2]
[323300775,1713881457196,-500.0,0.00012563,2]
[323300776,1713881457207,-666.5,0.00012563,2]
[323300777,1713881457218,-500.0,0.00012563,2]
[323300778,1713881457228,-550.73,0.00012563,2]
[323300779,1713881457240,-500.0,0.00012563,2]
[323300780,1713881457253,-500.0,0.00012563,2]
[323300781,1713881457266,-500.0,0.00012563,2]
[323300782,1713881457278,-500.0,0.00012563,2]
[323300783,1713881457291,-1000.0,0.00012563,2]
[323300784,1713881457303,-973.37,0.00012563,2]
[323300785,1713881457314,-558.76,0.00012563,2]
[323300786,1713881457326,-500.0,0.00012563,2]
[323300787,1713881457337,-521.67,0.00012563,2]
[323300788,1713881457348,-500.0,0.00012563,2]
[323300789,1713881457359,-500.0,0.00012563,2]
[323300790,1713881457370,-500.0,0.00012563,2]
[323300791,1713881457381,-500.0,0.00012563,2]
[323300792,1713881457392,-500.0,0.00012563,2]
[323300793,1713881457404,-500.0,0.00012563,2]
[323300794,1713881457416,-500.0,0.00012563,2]
[323300795,1713881457427,-1465.1,0.00012563,2]
[323300796,1713881457438,-500.0,0.00012563,2]
[323300797,1713881457450,-500.0,0.00012563,2]
[323300798,1713881457461,-500.0,0.00012563,2]
[323300799,1713881457473,-500.0,0.00012563,2]
[323300800,1713881457484,-1495.47,0.00012563,2]
[323300801,1713881457495,-500.0,0.00012563,2]
[323300802,1713881457506,-1679.97,0.00012563,2]
[323300803,1713881457520,-500.0,0.00012563,2]
[323300804,1713881457532,-500.0,0.00012563,2]
[323300805,1713881457543,-500.0,0.00012563,2]
[323300806,1713881457556,-500.0,0.00012563,2]
[323300807,1713881457567,-568.04,0.00012563,2]
[323300808,1713881457578,-500.0,0.00012563,2]
[323300809,1713881457589,-500.0,0.00012563,2]
[323300810,1713881457600,-500.0,0.00012563,2]
[323300811,1713881457612,-500.0,0.00012563,2]
[323300812,1713881457624,-500.0,0.00012563,2]
[323300813,1713881457635,-500.0,0.00012563,2]
[323300814,1713881457648,-1293.17,0.00012563,2]
[323300815,1713881457660,-500.0,0.00012563,2]
[323300816,1713881457672,-500.0,0.00012563,2]
[323300817,1713881457683,-2402.48756872,0.00012565,2]
[323300818,1713881457695,-202.68242374,0.00012565,2]
[323300819,1713881457706,-156.23288617,0.00012565,2]
[323300820,1713881457717,-150.0,0.00012567,2]
[323300821,1713881457729,-150.0,0.00012575,2]
[323300822,1713881457740,-150.0,0.00012576,2]
[323300823,1713881457751,-1101.32293141,0.00012577,2]
[323300824,1713881457764,-150.0,0.00012578,2]
[323300825,1713881457775,-150.0,0.00012584,2]
[323300826,1713881457786,-150.0,0.00012585,2]
[323300827,1713881457797,-150.0,0.00012591,2]
[323300828,1713881457808,-150.0,0.00012594,2]
[323300829,1713881457819,-150.0,0.00012599,2]
[323300830,1713881457830,-150.0,0.00012627,2]
[323300831,1713881457840,-2100.0,0.00012633,2]
[323300832,1713881457852,-150.0,0.00012634,2]
[323300833,1713881457863,-1101.32293141,0.00012642,2]
[323300834,1713881457874,-150.0,0.00012649,2]
[323300835,1713881457886,-2786.63034706,0.00012666,2]
[323300836,1713881457898,-150.0,0.00012667,2]
[323300837,1713881457909,-150.0,0.00012669,2]
[323300838,1713881457919,-150.0,0.00012673,2]
[323300839,1713881457930,-150.0,0.00012674,2]
[323300840,1713881457941,-150.0,0.00012677,2]
[323300841,1713881457952,-150.0,0.00012681,2]
[323300842,1713881457963,-150.0,0.00012681,2]
[323300843,1713881457973,-150.0,0.00012682,2]
[323300844,1713881457983,-150.0,0.00012684,2]
[323300845,1713881457995,-150.0,0.00012684,2]
[323300846,1713881458006,-150.0,0.00012688,2]
[323300847,1713881458020,-150.0,0.00012689,2]
[323300848,1713881458031,-150.0,0.00012694,2]
[323300849,1713881458041,-150.0,0.00012694,2]
[323300850,1713881458052,-150.0,0.00012695,2]
[323300851,1713881458062,-150.0,0.00012702,2]
[323300852,1713881458073,-150.0,0.00012703,2]
[323300853,1713881458085,-150.0,0.00012704,2]
[323300854,1713881458095,-1101.32293141,0.00012706,2]
[323300855,1713881458107,-150.0,0.00012707,2]
[323300856,1713881458118,-150.0,0.00012707,2]
[323300857,1713881458129,-150.0,0.00012708,2]
[323300858,1713881458139,-150.0,0.0001271,2]
[323300859,1713881458150,-150.0,0.0001271,2]
[323300860,1713881458161,-150.0,0.0001271,2]
[323300861,1713881458172,-607.05,0.00012711,2]
[323300862,1713881458183,-150.0,0.00012712,2]
[323300863,1713881458193,-150.0,0.00012714,2]
[323300864,1713881458205,-392.95,0.00012715,2]
[323300865,1713881458216,-150.0,0.00012717,2]
[323300866,1713881458226,-150.0,0.00012719,2]
[323300867,1713881458237,-150.0,0.00012722,2]
[323300868,1713881458248,-150.0,0.00012727,2]
[323300869,1713881458261,-150.0,0.00012729,2]
[323300870,1713881458272,-150.0,0.00012732,2]
[323300871,1713881458282,-150.0,0.00012733,2]
[323300872,1713881458293,-150.0,0.00012736,2]
[323300873,1713881458304,-150.0,0.00012742,2]
[323300874,1713881458315,-150.0,0.00012748,2]
[323300875,1713881458326,-150.0,0.00012751,2]
[323300876,1713881458337,-150.0,0.00012765,2]
[323300877,1713881458347,-150.0,0.00012765,2]
[323300878,1713881458358,-150.0,0.00012766,2]
[323300879,1713881458369,-150.0,0.00012767,2]
[323300880,1713881458379,-150.0,0.00012768,2]
[323300881,1713881458389,-150.0,0.00012769,2]
[323300882,1713881458400,-1101.32293141,0.00012771,2]
[323300883,1713881458411,-150.0,0.0001278,2]
[323300884,1713881458421,-150.0,0.0001278,2]
[323300885,1713881458431,-150.0,0.00012781,2]
[323300886,1713881458442,-150.0,0.0001279,2]
[323300887,1713881458452,-150.0,0.00012791,2]
[323300888,1713881458806,-150.0,0.00012792,2]
[323300889,1713881458837,-150.0,0.00012793,2]
[323300890,1713881458853,-150.0,0.00012796,2]
[323300891,1713881458862,-150.0,0.00012797,2]
[323300892,1713881458871,-150.0,0.00012799,2]
[323300893,1713881458881,-155.0,0.000128,2]
[323300894,1713881458891,-150.0,0.00012801,2]
[323300895,1713881458901,-1800.0,0.00012802,2]
[323300896,1713881458911,-800.0,0.00012802,2]
[323300897,1713881458920,-150.0,0.00012803,2]
[323300898,1713881458929,-150.0,0.00012806,2]
[323300899,1713881458939,-150.0,0.00012813,2]
[323300900,1713881458948,-1000.0,0.00012813,2]
[323300901,1713881458959,-500.0,0.00012813,2]
[323300902,1713881458968,-150.0,0.00012814,2]
[323300903,1713881458977,-150.0,0.00012815,2]
[323300904,1713881458987,-150.0,0.00012818,2]
[323300905,1713881458996,-150.0,0.0001282,2]
[323300906,1713881459005,-150.0,0.00012821,2]
[323300907,1713881459016,-150.0,0.00012822,2]
[323300908,1713881459025,-150.0,0.00012825,2]
[323300909,1713881459034,-150.0,0.00012829,2]
[323300910,1713881459043,-150.0,0.0001283,2]
[323300911,1713881459053,-150.0,0.0001283,2]
[323300912,1713881459062,-3359.09,0.00012833,2]
[323300913,1713881459071,-150.0,0.00012833,2]
[323300914,1713881459080,-150.0,0.00012833,2]
[323300915,1713881459090,-150.0,0.00012835,2]
[323300916,1713881459099,-1101.32293141,0.00012835,2]
[323300917,1713881459108,-666.88,0.00012836,2]
[323300918,1713881459118,-662.14,0.00012836,2]
[323300919,1713881459127,-500.0,0.00012836,2]
[323300920,1713881459137,-577.85,0.00012836,2]
[323300921,1713881459146,-500.0,0.00012836,2]
[323300922,1713881459155,-1050.42,0.00012836,2]
[323300923,1713881459164,-500.0,0.00012836,2]
[323300924,1713881459174,-500.0,0.00012836,2]
[323300925,1713881459184,-500.0,0.00012836,2]
[323300926,1713881459193,-500.0,0.00012836,2]
[323300927,1713881459202,-1187.22,0.00012836,2]
[323300928,1713881459212,-500.0,0.00012836,2]
[323300929,1713881459221,-528.44,0.00012836,2]
[323300930,1713881459230,-760.45,0.00012836,2]
[323300931,1713881459239,-500.0,0.00012836,2]
[323300932,1713881459248,-500.0,0.00012836,2]
[323300933,1713881459257,-734.05,0.00012836,2]
[323300934,1713881459268,-158.74149175,0.00012836,2]
[323300935,1713881459277,-1036.49,0.00012836,2]
[323300936,1713881459286,-1295.46,0.00012836,2]
[323300937,1713881459295,-565.98,0.00012836,2]
[323300938,1713881459304,-500.0,0.00012836,2]
[323300939,1713881459313,-789.45,0.00012836,2]
[323300940,1713881459322,-500.0,0.00012836,2]
[323300941,1713881459331,-538.42,0.00012836,2]
[323300942,1713881459340,-607.61,0.00012836,2]
[323300943,1713881459349,-500.0,0.00012836,2]
[323300944,1713881459359,-500.0,0.00012836,2]
[323300945,1713881459368,-500.0,0.00012836,2]
[323300946,1713881459378,-500.0,0.00012836,2]
[323300947,1713881459386,-500.0,0.00012836,2]
[323300948,1713881459395,-500.0,0.00012836,2]
[323300949,1713881459404,-18031.79,0.00012836,2]
[323300950,1713881459414,-500.0,0.00012836,2]
[323300951,1713881459423,-1675.53,0.00012836,2]
[323300952,1713881459432,-500.0,0.00012836,2]
[323300953,1713881459441,-500.0,0.00012836,2]
[323300954,1713881459450,-500.0,0.00012836,2]
[323300955,1713881459460,-500.0,0.00012836,2]
[323300956,1713881459469,-637.12,0.00012836,2]
[323300957,1713881459478,-973.59,0.00012836,2]
[323300958,1713881459488,-500.0,0.00012836,2]
[323300959,1713881459496,-943.17,0.00012836,2]
[323300960,1713881459506,-500.0,0.00012836,2]
[323300961,1713881459516,-500.0,0.00012836,2]
[323300962,1713881459525,-510.52,0.00012836,2]
[323300963,1713881459535,-850.64,0.00012836,2]
[323300964,1713881459546,-920.78,0.00012836,2]
[323300965,1713881459556,-964.6,0.00012836,2]
[323300966,1713881459567,-500.0,0.00012836,2]
[323300967,1713881459576,-997.19,0.00012836,2]
[323300968,1713881459585,-500.0,0.00012836,2]
[323300969,1713881459594,-3248.43,0.00012836,2]
[323300970,1713881459603,-500.0,0.00012836,2]
[323300971,1713881459612,-500.0,0.00012836,2]
[323300972,1713881459621,-500.0,0.00012836,2]
[323300973,1713881459631,-500.0,0.00012836,2]
[323300974,1713881459641,-1034.34,0.00012836,2]
[323300975,1713881459655,-500.0,0.00012836,2]
[323300976,1713881459664,-927.86,0.00012836,2]
[323300977,1713881459673,-596.99,0.00012836,2]
[323300978,1713881459683,-1714.59,0.00012836,2]
[323300979,1713881459692,-500.0,0.00012836,2]
[323300980,1713881459701,-500.0,0.00012836,2]
[323300981,1713881459710,-818.02,0.00012836,2]
[323300982,1713881459719,-500.0,0.00012836,2]
[323300983,1713881459731,-2482.34,0.00012836,2]
[323300984,1713881459741,-739.14,0.00012836,2]
[323300985,1713881459751,-500.0,0.00012836,2]
[323300986,1713881459763,-500.0,0.00012836,2]
[323300987,1713881459774,-600.11,0.00012836,2]
[323300988,1713881459786,-758.84,0.00012836,2]
[323300989,1713881459796,-500.0,0.00012836,2]
[323300990,1713881459805,-500.0,0.00012836,2]
[323300991,1713881459815,-500.0,0.00012836,2]
[323300992,1713881459826,-2819.73,0.00012836,2]
[323300993,1713881459836,-500.0,0.00012836,2]
[323300994,1713881459845,-500.0,0.00012836,2]
[323300995,1713881459855,-513.53,0.00012836,2]
[323300996,1713881459865,-500.0,0.00012836,2]
[323300997,1713881459874,-500.0,0.00012836,2]
[323300998,1713881459884,-500.0,0.00012836,2]
[323300999,1713881459894,-8226.17,0.00012836,2]
[323301000,1713881459903,-500.0,0.00012836,2]
[323301001,1713881459912,-623.66,0.00012836,2]
[323301002,1713881459921,-500.0,0.00012836,2]
[323301003,1713881459930,-500.0,0.00012836,2]
[323301004,1713881459940,-500.0,0.00012836,2]
[323301005,1713881459949,-3484.06,0.00012836,2]
[323301006,1713881459959,-4578.03,0.00012836,2]
[323301007,1713881459968,-594.2,0.00012836,2]
[323301008,1713881459977,-1107.93,0.00012836,2]
[323301009,1713881459986,-500.0,0.00012836,2]
[323301010,1713881459995,-1222.39,0.00012836,2]
[323301011,1713881460004,-1631.22,0.00012836,2]
[323301012,1713881460018,-1351.92,0.00012836,2]
[323301013,1713881460028,-690.72,0.00012836,2]
[323301014,1713881460037,-2048.47,0.00012836,2]
[323301015,1713881460048,-543.96,0.00012836,2]
[323301016,1713881460057,-1991.2,0.00012836,2]
[323301017,1713881460067,-500.0,0.00012836,2]
[323301018,1713881460077,-566.56,0.00012836,2]
[323301019,1713881460088,-1556.31,0.00012836,2]
[323301020,1713881460097,-787.33,0.00012836,2]
[323301021,1713881460107,-525.36,0.00012836,2]
[323301022,1713881460116,-2005.8,0.00012836,2]
[323301023,1713881460125,-4410.99,0.00012836,2]
[323301024,1713881460134,-861.88,0.00012836,2]
[323301025,1713881460143,-608.66,0.00012836,2]
[323301026,1713881460152,-1825.57,0.00012836,2]
[323301027,1713881460162,-1010.39,0.00012836,2]
[323301028,1713881460171,-500.0,0.00012836,2]
[323301029,1713881460180,-887.5,0.00012836,2]
[323301030,1713881460189,-2165.36,0.00012836,2]